bitfinex/quotes_BTCUSD_20240101
["timestamp","ask_amount","ask_price","bid_price","bid_amount"]
[1704092754962,0.09328685,42486.0,42484.0,0.001]
[1704092755429,0.09328685,42486.0,42483.0,0.23421711]
[1704092755430,0.09328685,42486.0,42483.0,0.001]
[1704092755634,0.09928685,42486.0,42483.0,0.001]
[1704092755836,0.09328685,42486.0,42479.0,0.209]
[1704092756061,0.09828685,42486.0,42484.0,0.001]
[1704092756262,0.10428685,42486.0,42484.0,0.002]
[1704092756422,0.10428685,42486.0,42484.0,0.001]
[1704092756423,0.09828685,42486.0,42484.0,0.001]
[1704092756851,0.10428685,42486.0,42484.0,0.001]
[1704092757222,0.10428685,42486.0,42485.0,0.23321711]
[1704092757754,0.09928685,42486.0,42485.0,0.23321711]
[1704092758135,0.09828685,42486.0,42485.0,0.23321711]
[1704092758689,0.09328685,42486.0,42485.0,0.23321711]
[1704092758904,0.10428685,42486.0,42485.0,0.23421711]
[1704092759132,0.09828685,42486.0,42485.0,0.23421711]
[1704092759970,0.09828685,42486.0,42485.0,0.23521711]
[1704092759971,0.10428685,42486.0,42485.0,0.23521711]
[1704092761836,0.10428685,42486.0,42485.0,0.002]
[1704092762856,0.10428685,42486.0,42485.0,0.23521711]
[1704092766130,0.11469247,42486.0,42485.0,0.23521711]
[1704092768537,0.02140562,42486.0,42485.0,0.23521711]
[1704092768968,0.02140562,42486.0,42485.0,0.32850396]
[1704092770802,0.02140562,42486.0,42485.0,0.31366396]
[1704092771026,0.02140562,42486.0,42485.0,0.26050396]
[1704092771273,0.01040562,42486.0,42485.0,0.31570396]
[1704092771502,0.01040562,42486.0,42485.0,0.32070396]
[1704092771734,0.01040776,42486.0,42485.0,0.32070396]
[1704092771954,1.42275266,42490.0,42485.0,0.32070396]
[1704092772179,1.42275266,42490.0,42486.0,0.09328685]
[1704092772422,1.42275266,42490.0,42487.0,0.23321711]
[1704092772638,1.42275266,42490.0,42488.0,0.3]
[1704092772861,1.42275266,42490.0,42489.0,0.23321711]
[1704092773093,1.42275266,42490.0,42489.0,0.58595711]
[1704092773545,1.42275266,42490.0,42489.0,0.53321711]
[1704092773766,1.42575266,42490.0,42489.0,0.58649711]
[1704092773991,1.42575266,42490.0,42489.0,0.53321711]
[1704092774236,1.42475266,42490.0,42489.0,0.95088711]
[1704092774483,1.42575266,42490.0,42489.0,1.15248711]
[1704092774713,1.42775266,42490.0,42489.0,1.15248711]
[1704092774929,1.42475266,42490.0,42489.0,1.15248711]
[1704092775144,1.42275266,42490.0,42489.0,1.22248711]
[1704092775353,1.42575266,42490.0,42489.0,1.22248711]
[1704092775571,1.42575266,42490.0,42489.0,1.23448711]
[1704092776006,1.42575266,42490.0,42489.0,1.32777396]
[1704092776488,1.42275266,42490.0,42489.0,1.32777396]
[1704092776925,1.42275266,42490.0,42489.0,1.33377396]
[1704092777153,1.42375266,42490.0,42489.0,1.35277396]
[1704092777420,1.42375266,42490.0,42489.0,1.33477396]
[1704092777687,1.42375266,42490.0,42489.0,1.35277396]
[1704092777931,1.42275266,42490.0,42489.0,1.33377396]
[1704092778189,1.42375266,42490.0,42489.0,1.35177396]
[1704092779123,1.42375266,42490.0,42489.0,1.36177396]
[1704092780785,1.43074679,42490.0,42489.0,1.36177396]
[1704092782252,1.43074679,42490.0,42489.0,1.4485855]
[1704092782471,1.43074679,42490.0,42489.0,1.47120557]
[1704092782715,1.43074679,42490.0,42489.0,1.44332841]
[1704092782899,1.43074679,42490.0,42489.0,1.47119728]
[1704092783132,1.43074679,42490.0,42489.0,1.60907728]
[1704092783347,1.43074679,42490.0,42489.0,1.58118686]
[1704092783771,1.43074679,42490.0,42489.0,1.60877319]
[1704092784611,1.43074679,42490.0,42489.0,1.47089319]
[1704092784816,1.41533872,42490.0,42489.0,1.70525319]
[1704092785963,1.41533872,42490.0,42489.0,1.64952029]
[1704092787282,1.41533872,42490.0,42489.0,1.70522515]
[1704092787702,1.41533872,42490.0,42489.0,1.81600844]
[1704092787926,1.41533872,42490.0,42489.0,1.67068844]
[1704092788136,1.41533872,42490.0,42489.0,1.55990488]
[1704092788368,1.41533872,42490.0,42489.0,1.55710488]
[1704092788577,1.41533872,42490.0,42489.0,1.55990488]
[1704092789000,1.41533872,42490.0,42489.0,1.64190029]
[1704092789184,1.41533872,42490.0,42489.0,1.69758513]
[1704092789399,1.41533872,42490.0,42489.0,1.78030854]
[1704092789636,1.41533872,42490.0,42489.0,1.58775717]
[1704092789853,1.41533872,42490.0,42489.0,1.58495717]
[1704092790296,1.41533872,42490.0,42489.0,1.50140029]
[1704092790498,1.41533872,42490.0,42489.0,1.65536029]
[1704092791238,1.41533872,42490.0,42489.0,1.71103029]
[1704092791437,1.41533872,42490.0,42489.0,1.72907476]
[1704092791668,1.41533872,42490.0,42489.0,1.82979993]
[1704092792101,1.41433872,42490.0,42489.0,1.71304305]
[1704092792521,1.41433872,42490.0,42489.0,1.83253319]
[1704092792747,1.04356756,42490.0,42489.0,1.84305844]
[1704092792958,1.04356756,42490.0,42489.0,1.86105844]
[1704092793167,1.04356756,42490.0,42489.0,1.80726751]
[1704092794045,1.04356756,42490.0,42489.0,1.98804751]
[1704092794256,1.04356756,42490.0,42489.0,2.01378889]
[1704092794699,0.74932187,42490.0,42489.0,1.9017735]
[1704092794912,0.74932187,42490.0,42489.0,2.04459274]
[1704092795138,0.74932187,42490.0,42489.0,1.9045735]
[1704092795355,0.74932187,42490.0,42489.0,2.04459274]
[1704092796198,0.74932187,42490.0,42489.0,1.96513216]
[1704092797217,0.30402522,42490.0,42489.0,2.07636295]
[1704092797430,0.00589093,42492.0,42491.0,0.71]
[1704092797647,0.00589093,42492.0,42491.0,1.52810256]
[1704092797917,0.00589093,42492.0,42491.0,2.25098256]
[1704092798369,0.00589093,42492.0,42491.0,2.1119727]
[1704092798791,0.00589093,42492.0,42491.0,2.16578799]
[1704092799017,0.00589093,42492.0,42491.0,2.01675112]
[1704092799218,0.00589093,42492.0,42491.0,2.0167363]
[1704092799344,0.00589093,42492.0,42491.0,2.11406709]
[1704092799565,0.00589093,42492.0,42491.0,2.13206709]
[1704092799933,0.00589093,42492.0,42491.0,2.21544468]
[1704092800142,0.00589093,42492.0,42491.0,2.03472468]
[1704092802232,0.34021467,42497.0,42492.0,0.31]
[1704092802448,0.34021467,42497.0,42492.0,0.95950396]
[1704092802615,0.34021467,42497.0,42492.0,1.68238396]
[1704092803020,0.34021467,42497.0,42496.0,0.31]
[1704092803263,0.34021467,42497.0,42496.0,0.95950396]
[1704092803471,0.34021467,42497.0,42496.0,1.46170396]
[1704092804335,0.34021467,42497.0,42496.0,1.59733396]
[1704092804851,0.34664236,42497.0,42496.0,1.59733396]
[1704092805066,0.34164236,42497.0,42496.0,1.61633396]
[1704092809518,0.34164236,42497.0,42496.0,1.71048396]
[1704092812656,0.34164236,42497.0,42496.0,1.54308396]
[1704092812850,0.34164236,42497.0,42496.0,1.69770396]
[1704092813206,0.34164236,42497.0,42496.0,1.7532827]
[1704092814283,0.34164236,42497.0,42496.0,1.89453197]
[1704092814665,0.34164236,42497.0,42496.0,1.92997109]
[1704092815280,0.34164236,42497.0,42496.0,1.95778905]
[1704092816323,0.34164236,42497.0,42496.0,1.8465935]
[1704092817160,0.34164236,42497.0,42496.0,1.98560336]
[1704092817646,0.34164236,42497.0,42496.0,2.01438638]
[1704092818305,0.34164236,42497.0,42496.0,1.87537652]
[1704092820908,0.34164236,42497.0,42496.0,1.72075652]
[1704092821105,0.34164236,42497.0,42496.0,1.87081652]
[1704092826216,0.34164236,42497.0,42496.0,2.03883961]
[1704092826434,0.34164236,42497.0,42496.0,1.87081652]
[1704092827132,0.34164236,42497.0,42496.0,1.66201652]
[1704092828204,0.33664236,42497.0,42496.0,1.66201652]
[1704092830386,0.33664236,42497.0,42496.0,1.80787652]
[1704092830822,0.33664236,42497.0,42496.0,1.65781652]
[1704092831761,0.33664236,42497.0,42496.0,1.79395652]
[1704092831967,0.33664236,42497.0,42496.0,1.65781652]
[1704092834233,0.33664236,42497.0,42496.0,1.96473961]
[1704092834589,0.33664236,42497.0,42496.0,1.82583961]
[1704092837231,0.33664236,42497.0,42496.0,1.65781652]
[1704092844896,0.33664236,42497.0,42496.0,1.4896256]
[1704092845120,0.33664236,42497.0,42496.0,1.3078056]
[1704092845328,0.33664236,42497.0,42496.0,1.3308056]
[1704092845540,0.33664236,42497.0,42496.0,1.4334656]
[1704092850577,0.33664236,42497.0,42496.0,1.57331199]
[1704092850802,0.33664236,42497.0,42496.0,1.3308056]
[1704092851019,0.33664236,42497.0,42496.0,1.44269382]
[1704092851236,0.33664236,42497.0,42496.0,1.34854382]
[1704092851489,0.33664236,42497.0,42496.0,1.44130382]
[1704092851707,0.33664236,42497.0,42496.0,1.34854382]
[1704092852350,0.33664236,42497.0,42496.0,1.42410157]
[1704092853308,0.33664236,42497.0,42496.0,1.45210382]
[1704092853719,0.33664236,42497.0,42496.0,1.48006776]
[1704092854018,0.33664236,42497.0,42496.0,1.3402156]
[1704092854178,0.33664236,42497.0,42496.0,1.4799134]
[1704092854335,0.33664236,42497.0,42496.0,1.3402156]
[1704092854697,0.33664236,42497.0,42496.0,1.45198191]
[1704092856538,0.33664236,42497.0,42496.0,1.34842191]
[1704092856951,0.33664236,42497.0,42496.0,1.43890191]
[1704092860075,0.33664236,42497.0,42496.0,1.34842191]
[1704092860299,0.33664236,42497.0,42496.0,0.69228698]
[1704092860515,0.33664236,42497.0,42496.0,0.66350396]
[1704092861160,0.33664236,42497.0,42496.0,0.64450396]
[1704092861373,0.33664236,42497.0,42496.0,0.62650396]
[1704092861646,0.33664236,42497.0,42496.0,0.64450396]
[1704092862506,0.33664236,42497.0,42496.0,0.66350396]
[1704092862900,0.33664236,42497.0,42496.0,0.64450396]
[1704092863316,0.33664236,42497.0,42496.0,0.66050396]
[1704092863533,0.33664236,42497.0,42496.0,0.56721711]
[1704092863746,0.33664236,42497.0,42496.0,0.66050396]
[1704092863961,0.33664236,42497.0,42496.0,0.56721711]
[1704092865877,0.33664236,42497.0,42496.0,1.06380396]
[1704092866096,0.33664236,42497.0,42496.0,1.20445396]
[1704092866312,0.33664236,42497.0,42496.0,1.43622809]
[1704092866988,0.33664236,42497.0,42496.0,1.34294124]
[1704092867418,0.33664236,42497.0,42496.0,1.32494124]
[1704092867630,0.33664236,42497.0,42496.0,1.34294124]
[1704092868075,0.33664236,42497.0,42496.0,1.21317493]
[1704092868284,0.33664236,42497.0,42496.0,1.31490369]
[1704092868705,0.33664236,42497.0,42496.0,1.40819054]
[1704092868914,0.33664236,42497.0,42496.0,1.42619054]
[1704092869149,0.33664236,42497.0,42496.0,1.45422809]
[1704092869358,0.33664236,42497.0,42483.0,0.05587294]
[1704092869359,0.1,42486.0,42483.0,0.05587294]
[1704092869578,0.2486,42496.0,42472.0,0.11257294]
[1704092869579,0.09328685,42485.0,42472.0,0.11257294]
[1704092869809,0.01,42483.0,42473.0,0.02774014]
[1704092870017,0.10328685,42482.0,42473.0,0.02774014]
[1704092870236,0.10328685,42482.0,42470.0,0.1]
[1704092870237,0.01,42481.0,42470.0,0.1]
[1704092870484,0.01,42478.0,42471.0,0.0277978]
[1704092870695,0.01,42476.0,42471.0,0.0277978]
[1704092870907,0.01,42476.0,42472.0,0.013]
[1704092871127,0.00547358,42475.0,42472.0,0.02778902]
[1704092871342,0.01,42476.0,42472.0,0.02778902]
[1704092871555,0.01,42476.0,42473.0,0.23321711]
[1704092871999,0.01,42476.0,42474.0,0.14318587]
[1704092872208,0.01,42476.0,42475.0,0.23321711]
[1704092872637,0.0157288,42476.0,42475.0,0.23321711]
[1704092874166,0.0157288,42476.0,42475.0,0.23521711]
[1704092875750,0.01,42476.0,42475.0,0.23521711]
[1704092876814,0.06304,42476.0,42475.0,0.23521711]
[1704092877576,0.01,42476.0,42475.0,0.23521711]
[1704092878626,0.01645285,42476.0,42475.0,0.23521711]
[1704092879067,0.01,42476.0,42475.0,0.23521711]
[1704092879615,0.01,42477.0,42475.0,0.2632708]
[1704092879813,0.1936,42483.0,42475.0,0.2632708]
[1704092879814,0.00645357,42476.0,42475.0,0.5632708]
[1704092880094,0.01,42484.0,42476.0,0.2]
[1704092880304,0.01,42484.0,42477.0,0.78311711]
[1704092880529,0.00647278,42483.0,42477.0,0.78311711]
[1704092880747,0.01,42483.0,42477.0,0.78311711]
[1704092882484,0.011,42483.0,42478.0,0.15636668]
[1704092882702,0.011,42483.0,42479.0,0.23321711]
[1704092883165,0.001,42483.0,42479.0,0.23321711]
[1704092883408,0.06741001,42488.0,42479.0,0.23321711]
[1704092883409,0.01,42486.0,42479.0,0.23321711]
[1704092883633,0.001,42483.0,42479.0,0.43321711]
[1704092884276,0.002,42483.0,42479.0,0.44421711]
[1704092884456,0.001,42483.0,42479.0,0.43321711]
[1704092884692,0.001,42483.0,42479.0,0.44021711]
[1704092884903,0.01,42485.0,42479.0,0.43321711]
[1704092885105,0.001,42483.0,42479.0,0.44221711]
[1704092885935,0.01,42485.0,42479.0,0.43321711]
[1704092886342,0.001,42483.0,42479.0,0.45021711]
[1704092886921,0.011,42485.0,42479.0,0.43921711]
[1704092887351,0.012,42485.0,42479.0,0.44721711]
[1704092887550,0.011,42485.0,42479.0,0.43921711]
[1704092887872,0.001,42483.0,42479.0,0.45021711]
[1704092888025,0.01,42485.0,42479.0,0.43321711]
[1704092888433,0.001,42483.0,42479.0,0.44221711]
[1704092888853,0.01,42485.0,42479.0,0.43321711]
[1704092889272,0.011,42485.0,42479.0,0.43921711]
[1704092889480,0.012,42485.0,42479.0,0.44721711]
[1704092894867,0.002,42485.0,42479.0,0.44721711]
[1704092895938,0.012,42485.0,42479.0,0.014]
[1704092896131,0.3,42472.0,42465.0,0.1]
[1704092896349,0.10610685,42471.0,42465.0,0.1]
[1704092896561,0.25851106,42471.0,42465.0,0.1]
[1704092897682,0.26002071,42471.0,42465.0,0.1]
[1704092897895,0.2663412,42471.0,42465.0,0.1]
[1704092898122,0.2745212,42471.0,42470.0,0.101]
[1704092900319,0.7129412,42471.0,42470.0,0.101]
[1704092900963,0.5745212,42471.0,42470.0,0.101]
[1704092901190,0.7184012,42471.0,42470.0,0.101]
[1704092901414,0.96829782,42471.0,42470.0,0.101]
[1704092901637,0.97492559,42471.0,42470.0,0.101]
[1704092902910,0.96392559,42471.0,42470.0,0.1]
[1704092903328,0.97892559,42471.0,42470.0,0.101]
[1704092903536,0.96392559,42471.0,42470.0,0.1]
[1704092903754,0.99492559,42471.0,42470.0,0.102]
[1704092904189,0.97892559,42471.0,42470.0,0.101]
[1704092904383,0.83504559,42471.0,42470.0,0.101]
[1704092904595,0.55104559,42471.0,42470.0,0.102]
[1704092907226,1.02195459,42471.0,42470.0,0.102]
[1704092907676,0.55104559,42471.0,42470.0,0.102]
[1704092907898,1.32195459,42471.0,42470.0,0.102]
[1704092908359,1.41524144,42471.0,42470.0,0.102]
[1704092908566,1.50949944,42471.0,42470.0,0.102]
[1704092921325,0.1,42468.0,42465.0,0.1]
[1704092921544,0.01,42466.0,42465.0,0.1]
[1704092921747,0.10328685,42466.0,42465.0,0.1]
[1704092921984,0.33488253,42466.0,42465.0,0.1]
[1704092922202,0.23159568,42466.0,42465.0,0.33321711]
[1704092922419,0.00719568,42466.0,42465.0,0.33702711]
[1704092922871,0.012,42468.0,42467.0,0.12637197]
[1704092923080,0.01,42469.0,42467.0,0.12637197]
[1704092923785,0.01,42469.0,42468.0,0.23321711]
[1704092925178,0.011,42469.0,42468.0,0.24321711]
[1704092925619,0.012,42469.0,42468.0,0.25521711]
[1704092925844,0.002,42469.0,42468.0,0.25521711]
[1704092926061,0.012,42469.0,42468.0,0.25521711]
[1704092926931,0.002,42469.0,42468.0,0.45521711]
[1704092927125,0.002,42469.0,42468.0,0.40873734]
[1704092943563,0.002,42469.0,42468.0,0.70873734]
[1704092947996,0.002,42469.0,42468.0,0.99304635]
[1704092948213,0.002,42469.0,42468.0,0.85802711]
[1704092948848,0.002,42469.0,42468.0,0.84802711]
[1704092949058,0.001,42469.0,42468.0,0.84802711]
[1704092949262,0.003,42469.0,42468.0,0.86602711]
[1704092949461,0.05874,42487.0,42475.0,0.1]
[1704092949671,0.06528,42488.0,42476.0,0.23321711]
[1704092949870,0.06528,42488.0,42476.0,0.47811711]
[1704092949871,0.07528,42488.0,42476.0,0.47811711]
[1704092950090,0.07552,42488.0,42476.0,0.47811711]
[1704092950298,0.05532,42487.0,42476.0,0.47811711]
[1704092950771,0.14860685,42487.0,42476.0,0.57811711]
[1704092950936,0.09328685,42486.0,42476.0,0.59511711]
[1704092951157,0.14248685,42486.0,42476.0,0.58611711]
[1704092951359,0.14248685,42486.0,42478.0,0.2]
[1704092951510,0.09328685,42486.0,42479.0,0.53321711]
[1704092951904,0.09328685,42485.0,42480.0,0.41428685]
[1704092952116,0.09328685,42485.0,42481.0,0.53321711]
[1704092953638,0.09328685,42485.0,42481.0,0.53921711]
[1704092953639,0.09428685,42485.0,42481.0,0.53921711]
[1704092954313,0.001,42485.0,42481.0,0.53321711]
[1704092954734,0.002,42485.0,42481.0,0.54421711]
[1704092954954,0.01,42489.0,42481.0,0.53321711]
[1704092955159,0.05406,42490.0,42481.0,0.53321711]
[1704092955160,0.09328685,42488.0,42481.0,0.53321711]
[1704092955368,0.001,42485.0,42481.0,0.53821711]
[1704092955586,0.09328685,42484.0,42481.0,0.53821711]
[1704092955719,0.09328685,42484.0,42481.0,0.53321711]
[1704092956134,0.09328685,42484.0,42481.0,0.53921711]
[1704092956553,0.09328685,42484.0,42481.0,0.53321711]
[1704092956754,0.09528685,42484.0,42481.0,0.54721711]
[1704092956970,0.09428685,42484.0,42481.0,0.53921711]
[1704092957385,0.09528685,42484.0,42483.0,0.2]
[1704092957598,0.002,42484.0,42483.0,0.73321711]
[1704092958046,0.001,42484.0,42483.0,0.73321711]
[1704092958289,0.002,42484.0,42483.0,0.73321711]
[1704092958704,0.001,42484.0,42483.0,0.73321711]
[1704092959126,0.002,42484.0,42483.0,0.74421711]
[1704092959535,0.001,42484.0,42483.0,0.78356651]
[1704092959734,0.002,42484.0,42483.0,0.79556651]
[1704092961063,0.002,42484.0,42483.0,0.85902711]
[1704092961281,0.002,42484.0,42483.0,1.01007158]
[1704092961514,0.002,42484.0,42483.0,0.85902711]
[1704092961728,0.002,42484.0,42483.0,1.01971967]
[1704092961969,0.001,42484.0,42483.0,1.00871967]
[1704092962184,0.003,42484.0,42483.0,1.02671967]
[1704092962605,0.33021467,42497.0,42488.0,0.2]
[1704092962815,0.33021467,42497.0,42489.0,0.53321711]
[1704092963044,0.00695358,42496.0,42489.0,0.78141711]
[1704092963516,0.09328685,42496.0,42489.0,0.78141711]
[1704092963717,0.00695358,42495.0,42489.0,0.78141711]
[1704092963932,0.10024043,42495.0,42489.0,0.78941711]
[1704092964349,0.10024043,42495.0,42489.0,0.78141711]
[1704092964560,0.10024043,42495.0,42490.0,0.04983554]
[1704092964777,0.10024043,42495.0,42491.0,0.23321711]
[1704092964985,0.10024043,42495.0,42492.0,0.3]
[1704092965201,0.10024043,42495.0,42493.0,0.23321711]
[1704092965439,0.10024043,42495.0,42494.0,0.3]
[1704092965642,0.10124043,42495.0,42494.0,0.53321711]
[1704092966095,0.10024043,42495.0,42494.0,0.53321711]
[1704092966735,0.10024043,42495.0,42494.0,0.76231711]
[1704092967168,0.10024043,42495.0,42494.0,0.76531711]
[1704092967603,0.00695358,42495.0,42494.0,0.76531711]
[1704092968063,0.33021467,42497.0,42494.0,0.76531711]
[1704092968287,0.00695358,42495.0,42494.0,0.5321]
[1704092968552,0.42350152,42497.0,42494.0,0.5321]
[1704092968745,0.00695358,42495.0,42494.0,0.5341]
[1704092968951,0.42350152,42497.0,42494.0,0.5311]
[1704092969159,0.00695358,42495.0,42494.0,0.5321]
[1704092969395,0.47000152,42497.0,42494.0,0.5301]
[1704092969601,0.00695358,42495.0,42494.0,0.5301]
[1704092969821,0.00695358,42495.0,42494.0,0.53421711]
[1704092969822,0.09328685,42495.0,42494.0,0.53421711]
[1704092970029,0.1002544,42495.0,42494.0,0.53421711]
[1704092970443,0.1002544,42495.0,42494.0,0.53321711]
[1704092970667,0.1002544,42495.0,42494.0,0.53621711]
[1704092971287,0.1002544,42495.0,42494.0,0.53821711]
[1704092982523,0.00696755,42495.0,42494.0,0.53821711]
[1704092983542,0.38121467,42497.0,42494.0,0.53821711]
[1704092983760,0.00695123,42495.0,42494.0,0.53821711]
[1704092983973,0.38121467,42497.0,42494.0,0.53821711]
[1704092984198,0.00695123,42495.0,42494.0,0.53821711]
[1704092984429,0.38121467,42497.0,42494.0,0.53621711]
[1704092984903,0.00694658,42496.0,42494.0,0.53621711]
[1704092985127,0.10023343,42496.0,42494.0,0.53621711]
[1704092985342,0.10023343,42496.0,42494.0,0.68774303]
[1704092985574,0.09328685,42495.0,42494.0,0.68774303]
[1704092985781,0.09328685,42495.0,42494.0,0.68474303]
[1704092985967,0.09328685,42495.0,42494.0,0.68574303]
[1704092986200,0.10023342,42495.0,42494.0,0.68474303]
[1704092986405,0.10023342,42495.0,42494.0,0.68674303]
[1704092986592,0.10023342,42495.0,42494.0,0.68874303]
[1704092986764,0.10023342,42495.0,42494.0,0.68674303]
[1704092986964,0.10023342,42495.0,42494.0,0.68974303]
[1704092987380,0.10023342,42495.0,42494.0,0.53821711]
[1704092997225,0.10023342,42495.0,42494.0,0.57388612]
[1704092998025,0.10023342,42495.0,42494.0,0.77388612]
[1704092998578,0.00694657,42495.0,42494.0,0.77388612]
[1704092999037,0.33021467,42497.0,42494.0,0.77388612]
[1704092999249,0.33021467,42497.0,42495.0,0.23321711]
[1704092999250,0.42350152,42497.0,42495.0,0.23321711]
[1704092999459,0.42350152,42497.0,42496.0,0.2524]
[1704092999460,0.33021467,42497.0,42496.0,0.2524]
[1704092999667,0.33021467,42497.0,42496.0,0.48561711]
[1704093000114,0.42350152,42497.0,42496.0,0.48561711]
[1704093000331,0.42450152,42497.0,42496.0,0.48561711]
[1704093001608,0.42450152,42497.0,42496.0,0.48661711]
[1704093001990,0.33021467,42497.0,42496.0,0.48661711]
[1704093002192,0.33121467,42497.0,42496.0,0.48661711]
[1704093002598,0.33121467,42497.0,42496.0,0.78661711]
[1704093002776,0.42450152,42497.0,42496.0,0.78661711]
[1704093004714,0.33121467,42497.0,42496.0,0.78661711]
[1704093006154,0.338221,42497.0,42496.0,0.78661711]
[1704093009409,0.338221,42497.0,42496.0,0.84215245]
[1704093009817,0.337221,42497.0,42496.0,0.84215245]
[1704093010653,0.337221,42497.0,42496.0,0.78561711]
[1704093010874,0.337221,42497.0,42496.0,0.79761711]
[1704093011083,0.338221,42497.0,42496.0,0.80861711]
[1704093025692,0.338221,42497.0,42496.0,0.55621711]
[1704093029766,0.43150785,42497.0,42496.0,0.55621711]
[1704093039528,0.48323081,42497.0,42496.0,0.323]
[1704093039732,0.50459081,42497.0,42496.0,0.023]
[1704093040155,0.49924785,42497.0,42496.0,0.023]
[1704093052159,0.405961,42497.0,42496.0,0.023]
[1704093055407,0.49924785,42497.0,42496.0,0.023]
[1704093055857,0.405961,42497.0,42496.0,0.023]
[1704093056452,0.49924785,42497.0,42496.0,0.023]
[1704093056692,0.405961,42497.0,42496.0,0.023]
[1704093058034,0.49924785,42497.0,42496.0,0.023]
[1704093058915,0.405961,42497.0,42496.0,0.023]
[1704093062912,0.49924785,42497.0,42496.0,0.023]
[1704093071110,0.405961,42497.0,42496.0,0.023]
[1704093072857,0.50924785,42497.0,42496.0,0.023]
[1704093073074,0.60236785,42497.0,42496.0,0.023]
[1704093073486,0.63602785,42497.0,42496.0,0.023]
[1704093073696,0.63602785,42497.0,42496.0,0.011]
[1704093073981,0.531741,42497.0,42491.0,0.3]
[1704093074212,0.337221,42497.0,42496.0,0.23621711]
[1704093074652,0.337221,42497.0,42496.0,0.23521711]
[1704093074878,0.338221,42497.0,42496.0,0.23521711]
[1704093075279,0.338221,42497.0,42496.0,0.23321711]
[1704093076127,0.337221,42497.0,42496.0,0.23321711]
[1704093076336,0.337221,42497.0,42496.0,0.23821711]
[1704093076550,0.337221,42497.0,42496.0,0.24921711]
[1704093076755,0.337221,42497.0,42496.0,0.24421711]
[1704093077412,0.338221,42497.0,42496.0,0.25321711]
[1704093078402,0.43150785,42497.0,42496.0,0.25321711]
[1704093087189,0.47938785,42497.0,42496.0,0.25321711]
[1704093087448,0.48530263,42497.0,42496.0,0.02]
[1704093087706,0.50792263,42497.0,42496.0,0.02]
[1704093088147,0.51792263,42497.0,42496.0,0.02]
[1704093088356,0.60912263,42497.0,42496.0,0.02]
[1704093088785,0.51792263,42497.0,42496.0,0.02]
[1704093089423,0.01,42495.0,42490.0,0.3]
[1704093089648,0.09328685,42494.0,42490.0,0.53321711]
[1704093089890,0.16510665,42494.0,42491.0,0.2324]
[1704093090137,0.05742,42493.0,42491.0,0.2324]
[1704093090605,0.00708285,42492.0,42491.0,0.2324]
[1704093090840,0.00708285,42492.0,42491.0,0.5324]
[1704093091731,0.06054285,42492.0,42491.0,0.5324]
[1704093092117,0.00708285,42492.0,42491.0,0.5434]
[1704093093086,0.00808285,42492.0,42491.0,0.5524]
[1704093095770,0.06238285,42492.0,42491.0,0.5524]
[1704093096009,0.19360285,42492.0,42491.0,0.02]
[1704093096200,0.10084285,42492.0,42491.0,0.02]
[1704093098131,0.11084285,42492.0,42491.0,0.02]
[1704093098341,0.2041297,42492.0,42491.0,0.02]
[1704093099261,0.3086497,42492.0,42491.0,0.02]
[1704093099685,0.3043897,42492.0,42491.0,0.02]
[1704093100112,0.3043897,42492.0,42491.0,0.011]
[1704093100113,0.3033897,42492.0,42491.0,0.011]
[1704093100343,0.3033897,42492.0,42491.0,0.015]
[1704093100553,0.3033897,42492.0,42491.0,0.004]
[1704093100734,0.3033897,42492.0,42491.0,0.009]
[1704093100861,0.3033897,42492.0,42491.0,0.004]
[1704093101294,0.3043897,42492.0,42491.0,0.004]
[1704093101501,0.01,42488.0,42485.0,0.2387]
[1704093101717,0.10030848,42487.0,42481.0,0.02843685]
[1704093101940,0.16600848,42487.0,42482.0,0.46401711]
[1704093102160,0.0588,42486.0,42482.0,0.46401711]
[1704093102377,0.09328685,42485.0,42483.0,0.3]
[1704093102588,0.10030315,42485.0,42483.0,0.53321711]
[1704093102859,0.04698,42484.0,42483.0,0.53321711]
[1704093103007,0.14727913,42484.0,42483.0,0.53321711]
[1704093103213,0.13906685,42484.0,42483.0,0.53321711]
[1704093103427,0.09328685,42484.0,42483.0,0.53321711]
[1704093104270,0.001,42486.0,42483.0,0.54721711]
[1704093104488,0.001,42486.0,42484.0,0.23321711]
[1704093104912,0.01,42488.0,42485.0,0.2367]
[1704093105181,0.01,42488.0,42486.0,0.23321711]
[1704093105380,0.01,42492.0,42486.0,0.23321711]
[1704093105578,0.00744174,42487.0,42486.0,0.34595097]
[1704093105803,0.09328685,42487.0,42486.0,0.34595097]
[1704093106763,0.09428685,42487.0,42486.0,0.35395097]
[1704093107234,0.09428685,42487.0,42486.0,0.36295097]
[1704093107670,0.001,42487.0,42486.0,0.36295097]
[1704093111970,0.001,42487.0,42486.0,0.25021711]
[1704093114262,0.04954,42487.0,42486.0,0.25021711]
[1704093115750,0.30264685,42487.0,42486.0,0.017]
[1704093115966,0.30880214,42487.0,42486.0,0.017]
[1704093116175,0.3162359,42487.0,42486.0,0.017]
[1704093116613,0.01,42482.0,42481.0,0.094201]
[1704093116821,0.01,42481.0,42475.0,0.14137686]
[1704093117029,0.09328685,42480.0,42476.0,0.47741711]
[1704093117242,0.11167194,42480.0,42476.0,0.47741711]
[1704093117452,0.07596,42479.0,42476.0,0.47741711]
[1704093117684,0.16924685,42479.0,42476.0,0.47741711]
[1704093117901,0.00839032,42478.0,42476.0,0.47741711]
[1704093118174,0.07673032,42478.0,42476.0,0.47741711]
[1704093118412,0.05802,42477.0,42476.0,0.47741711]
[1704093118628,0.05802,42477.0,42476.0,0.83454956]
[1704093119050,0.0594,42479.0,42476.0,0.82954956]
[1704093119470,0.00937361,42478.0,42476.0,0.83654956]
[1704093119679,0.00937361,42478.0,42476.0,0.78441711]
[1704093119888,0.04632,42477.0,42476.0,0.79441711]
[1704093120097,0.04632,42477.0,42476.0,0.78441711]
[1704093120300,0.001,42478.0,42476.0,0.78441711]
[1704093120515,0.001,42478.0,42476.0,0.86696984]
[1704093120735,0.001,42478.0,42476.0,0.85996984]
[1704093120940,0.001,42478.0,42476.0,0.86996984]
[1704093121144,0.05976,42479.0,42476.0,0.86296984]
[1704093121582,0.05976,42479.0,42476.0,0.86796984]
[1704093122197,0.15304685,42479.0,42476.0,0.85796984]
[1704093122412,0.15304685,42479.0,42476.0,0.86596984]
[1704093122628,0.04686,42478.0,42476.0,0.85796984]
[1704093122841,0.14014685,42478.0,42476.0,0.85796984]
[1704093123044,0.14014685,42478.0,42476.0,0.86496984]
[1704093123278,0.09328685,42477.0,42476.0,0.86496984]